Cogmind - Beta 13 @@@ ROGUE MODE // 2024.05.08 @ 19:57:46 Player: TurnLeft25 Result: Destroyed by H-55 Commando with Gauss Rifle Performance ------------- Evolutions (1) 500 Regions Visited (6) 1200 Robots Destroyed (34) 170 Value Destroyed (749) 749 Prototype IDs (28) 560 Alien Tech Used (0) 0 Bonus (231) 231 TOTAL SCORE: 3410 Bonus ------- Aligned with FarCom 300 Friendly Fire -69 Cogmind --------- Core Integrity 0/400 Matter 108/300 Energy 100/100 System Corruption 0% Temperature Cool (0) Movement Core (200) Ox3 Location -8/Mines Parts ------- > --- POWER (1) -------- (None) > --- PROPULSION (2) --- (None) > --- UTILITY (4) ------ Small Storage Unit Visual Processing Unit Improved Targeting Computer > --- WEAPON (2) ------- Light Assault Rifle Rocket Launcher > --- INVENTORY (8) ---- Structural Scanner Medium Armor Plating Firepult Peak State ------------ > --- POWER ------------ Light Ion Engine > --- PROPULSION ------- Light Treads > --- UTILITY ---------- Small Storage Unit Experimental Sensor Array Improved Targeting Computer Core Shielding > --- WEAPON ----------- Light Assault Rifle Mini Grenade Launcher > --- INVENTORY -------- Visual Processing Unit Medium Armor Plating Firepult Light Assault Rifle Grenade Launcher Rocket Launcher [Rating: 20] Favorites ----------- Power Light Ion Engine Engine Light Ion Engine Power Core Light Nuclear Core Propulsion Light Treads Treads Light Treads Utility Small Storage Unit Device Experimental Sensor Array Storage Small Storage Unit Processor Improved Targeting Computer Protection Core Shielding Weapon Light Assault Rifle Energy Gun Medium Laser Ballistic Gun Light Assault Rifle Ballistic Cannon Light Cannon Launcher Mini Grenade Launcher Special Weapon Mining Laser Build | -11 -10 -10 -9 -9 -9 -8 ------- Run | Yrd Mat Min Mat Min Exi Min Slots Evolved 2 | . . . 2 . . . Power . | . . . . . . . Propulsion . | . . . . . . . Utility 2 | . . . 2 . . . Weapon . | . . . . . . . Parts Attached 33 | 6 1 3 15 3 . 5 Power 5 | 1 . . 2 1 . 1 Engine 4 | 1 . . 2 1 . . Core 1 | . . . . . . 1 Reactor . | . . . . . . . Propulsion 4 | 2 . . 2 . . . Treads 4 | 2 . . 2 . . . Leg . | . . . . . . . Wheel . | . . . . . . . Hover . | . . . . . . . Flight . | . . . . . . . Utility 10 | 1 1 1 5 1 . 1 Device 2 | . . . 1 1 . . Storage 2 | 1 . 1 . . . . Processor 3 | . 1 . 1 . . 1 Hackware . | . . . . . . . Protection 3 | . . . 3 . . . Artifact . | . . . . . . . Weapon 14 | 2 . 2 6 1 . 3 Energy Gun 2 | 1 . . 1 . . . Energy Cannon . | . . . . . . . Ballistic Gun 4 | 1 . 1 . 1 . 1 Ballistic Cannon 2 | . . . 2 . . . Launcher 5 | . . 1 2 . . 2 Special Weapon 1 | . . . 1 . . . Impact Weapon . | . . . . . . . Slashing Weapon . | . . . . . . . Piercing Weapon . | . . . . . . . Special Melee Weapon . | . . . . . . . Unidentified Prototypes 1 | . . . . 1 . . Parts Lost 17 | . . . 6 3 . 8 Power 3 | . . . . 1 . 2 Propulsion 3 | . . . 2 . . 1 Utility 4 | . . . 1 1 . 2 Weapon 7 | . . . 3 1 . 3 Highest Loss Streak 6 | . . . 4 2 . 6 To Critical Strikes . | . . . . . . . Average Slot Usage (%) 88 | . 91 100 90 85 88 75 Engine 9 | . 14 14 10 10 11 . Core 1 | . . . . . . 9 Treads 14 | . 28 28 16 11 11 . Device 6 | . . . 11 9 11 . Storage 11 | . 14 14 11 11 11 11 Processor 12 | . 5 14 11 11 11 20 Protection 7 | . . . 9 11 11 10 Energy Gun 6 | . 14 14 10 3 . . Ballistic Gun 8 | . 14 7 1 7 11 11 Ballistic Cannon 1 | . . . 7 . . . Launcher 7 | . . 7 1 11 11 10 Naked Turns . | . . . . . . . Heaviest Build 26 | 11 11 13 26 15 12 16 Greatest Support 40 | 40 40 40 40 20 20 3 Greatest Overweight (x) 8 | . . . 8 . . 5 Average Overweight (x) . | . . . . . . 4 Largest Inventory Capacity 8 | 8 8 8 8 8 8 8 Average Capacity 7 | 6 8 8 8 8 8 8 Most Carried 8 | 5 4 5 8 6 7 7 Average Carried 4 | 1 2 4 6 4 6 3 Final Capacity 8 | 8 8 8 8 8 8 8 Final Carried 7 | 1 4 5 4 5 7 4 Class Distribution -------------------- 86% | Mutant 13% | Scavenger-Mutant Dominant Class ---------------- Mutant | -10/Materials Mutant | -10/Mines Mutant | -9/Materials Mutant | -9/Mines Mutant | -9/Exiles Scavenger-Mutant | -8/Mines Resources | -11 -10 -10 -9 -9 -9 -8 ----------- Run | Yrd Mat Min Mat Min Exi Min Matter Collected 574 | 215 64 10 169 77 . 39 Remotely . | . . . . . . . Salvage Created 644 | . 169 . 227 99 . 149 Parts 46 | . 11 . 20 9 . 6 Haulers Intercepted . | . . . . . . . Recyclers Shooed 2 | . . . 1 . . 1 Parts Field Recycled . | . . . . . . . Retrieved Matter . | . . . . . . . Parts Self-Destructed . | . . . . . . . Prevented . | . . . . . . . Kills | -11 -10 -10 -9 -9 -9 -8 ------- Run | Yrd Mat Min Mat Min Exi Min Combat Hostiles Destroyed 27 | . 6 . 10 8 . 3 Guns 9 | . 6 . 2 1 . . Cannons 2 | . . . 2 . . . AOE 16 | . . . 6 7 . 3 Classes Destroyed 9 | . 3 . 3 1 . 2 Builder 4 | . 1 . 2 . . 1 Recycler 1 | . . . . . . 1 Watcher 1 | . . . 1 . . . Swarmer 13 | . 3 . 4 6 . . Grunt 10 | . 3 . 3 1 . 3 Brawler 1 | . . . . 1 . . Duelist 2 | . . . 2 . . . Sentry 1 | . . . 1 . . . Zionite 1 | . . . . . . 1 Best Kill Streak 5 | . 3 . 5 4 . 3 Combat Bots Only 5 | . 3 . 5 4 . 3 Max Kills in Single Turn 2 | . 1 . 2 2 . 2 Gunslinging . | . . . . . . . Exploded 2 | . . . 2 2 . 2 Melee . | . . . . . . . Uniques/NPCs Destroyed . | . . . . . . . Combat | -11 -10 -10 -9 -9 -9 -8 -------- Run | Yrd Mat Min Mat Min Exi Min Hostile Shots Fired 185 | . 44 . 87 19 . 35 Missed 60 | . 14 . 35 3 . 8 Damage Taken 2070 | . 270 . 940 268 . 592 Core 442 | . 27 . 211 17 . 187 Absorbed by Shields . | . . . . . . . Redirected to Shielding 39 | . . . 2 3 . 34 Core Remaining (%) 94 | 100 . 89 . . . . Volleys Fired 84 | . 15 . 28 18 . 23 Largest 2 | . 2 . 2 2 . 2 Hottest 150 | . 70 . 150 80 . 53 Shots Fired 136 | . 30 . 51 23 . 32 Gun 95 | . 30 . 24 17 . 24 Cannon 20 | . . . 20 . . . Launcher 20 | . . . 6 6 . 8 Special 1 | . . . 1 . . . Kinetic 62 | . 15 . 20 3 . 24 Thermal 54 | . 15 . 25 14 . . Explosive 20 | . . . 6 6 . 8 Electromagnetic . | . . . . . . . Robot Hit Streak 21 | . 14 . 8 12 . 21 Robot Miss Streak 3 | . 2 . 3 3 . 3 Penetration Max . | . . . . . . . Secondary Targets 2 | . 2 . . . . . Max Gunslinging Chain 1 | . 1 . . . . . Shots Hit Robots 92 | . 20 . 33 14 . 25 Core Hits 56 | . 11 . 20 11 . 14 Critical Kills 1 | . 1 . . . . . Critical Parts Destroyed . | . . . . . . . Critical Strikes 3 | . 2 . . 1 . . Burn 2 | . 1 . . 1 . . Destroy 1 | . 1 . . . . . Melee Attacks . | . . . . . . . Impact . | . . . . . . . Slashing . | . . . . . . . Piercing . | . . . . . . . Sneak Attacks . | . . . . . . . Combat Hostiles . | . . . . . . . Follow-up Attacks . | . . . . . . . Damage Inflicted 2587 | . 230 . 1007 553 . 797 Guns 665 | . 225 . 199 115 . 126 Cannons 244 | . . . 244 . . . Explosions 1649 | . . . 540 438 . 671 Melee . | . . . . . . . Ramming 5 | . 5 . . . . . Kinetic 451 | . 65 . 244 16 . 126 Thermal 482 | . 160 . 223 99 . . Explosive 1649 | . . . 540 438 . 671 Electromagnetic . | . . . . . . . Impact . | . . . . . . . Slashing . | . . . . . . . Piercing . | . . . . . . . Highest Corruption . | . . . . . . . Average Corruption . | . . . . . . . Corruption Purged . | . . . . . . . Corruption Blocked . | . . . . . . . Overload Shots . | . . . . . . . Overflow Damage 113 | . . . 30 31 . 52 Projectiles . | . . . . . . . Explosions 113 | . . . 30 31 . 52 Melee . | . . . . . . . Knockbacks 2 | . . . 2 . . . Impact . | . . . . . . . Kinetic 2 | . . . 2 . . . Secondary . | . . . . . . . Self-Inflicted Damage 444 | . . . 173 115 . 156 Shots 11 | . . . 4 3 . 4 Rammed 4 | . 3 . . 1 . . Targets Rammed 5 | . 4 . . 1 . . Kicked . | . . . . . . . Crushed 1 | . 1 . . . . . Highest Temperature 140 | . 140 . 13 54 . 20 Average Temperature 35 | . 66 . 6 22 . 9 Received Heat Transfer 402 | . 48 . 126 48 . 180 Siege Activations . | . . . . . . . Robots Corrupted . | . . . . . . . Combat Hostiles . | . . . . . . . Parts Fried . | . . . . . . . Impact Corruptions . | . . . . . . . Robots Melted . | . . . . . . . Combat Hostiles . | . . . . . . . Parts Melted . | . . . . . . . Heat Transferred 1567 | . 555 . 642 370 . . Parts Sabotaged . | . . . . . . . Parts Stolen . | . . . . . . . Parts Stripped . | . . . . . . . Power Chain Reactions . | . . . . . . . Alert | -11 -10 -10 -9 -9 -9 -8 ------- Run | Yrd Mat Min Mat Min Exi Min Peak Influence 384 | . 165 64 310 384 . 81 Initial 120 | . . 64 24 120 . . Average 117 | . 73 64 118 236 . 60 Maximum Alert Level 1 | . . . 1 1 . . Low Security (%) 75 | 100 100 100 69 30 . 100 Level 1 24 | . . . 30 69 . . Level 2 . | . . . . . . . Level 3 . | . . . . . . . Level 4 . | . . . . . . . Level 5 . | . . . . . . . High Security . | . . . . . . . Max Security . | . . . . . . . Squads Dispatched 2 | . 1 . 1 . . . Investigation 1 | . 1 . . . . . Extermination . | . . . . . . . Reinforcement 1 | . . . 1 . . . Assault . | . . . . . . . Garrison . | . . . . . . . Intercept . | . . . . . . . Searches Triggered . | . . . . . . . Construction Impeded 1 | . . . 1 . . . Haulers Reinforced . | . . . . . . . Active Scanning Responses . | . . . . . . . Cargo Convoy Interrupts . | . . . . . . . Stealth | -11 -10 -10 -9 -9 -9 -8 --------- Run | Yrd Mat Min Mat Min Exi Min Distress Signals . | . . . . . . . Communications Jammed . | . . . . . . . Distress Signals . | . . . . . . . Times Spotted 32 | . 9 . 12 7 . 4 Peak Tracking Total 7 | . 4 . 7 4 . 3 Tactical Retreats 1 | . . . . 1 . . Traps | -11 -10 -10 -9 -9 -9 -8 ------- Run | Yrd Mat Min Mat Min Exi Min Traps Triggered . | . . . . . . . Indirectly . | . . . . . . . Trap Hack Attempts . | . . . . . . . Triggered . | . . . . . . . Disarmed . | . . . . . . . Reprogrammed . | . . . . . . . Reused . | . . . . . . . Traps Extracted . | . . . . . . . Installed . | . . . . . . . Triggered 2 | . . . . 2 . . Machines | -11 -10 -10 -9 -9 -9 -8 ---------- Run | Yrd Mat Min Mat Min Exi Min Machines Disabled 2 | . . . 1 1 . . Max in Single Turn 1 | . . . 1 1 . . Machines Repaired . | . . . . . . . Machines Dismantled . | . . . . . . . Machines Sabotaged . | . . . . . . . Overloaded Fab Kills . | . . . . . . . Hacking | -11 -10 -10 -9 -9 -9 -8 --------- Run | Yrd Mat Min Mat Min Exi Min Machines Accessed 6 | . 3 . . 1 2 . Terminals 4 | . 3 . . 1 . . Fabricators . | . . . . . . . Repair Stations . | . . . . . . . Recycling Units . | . . . . . . . Scanalyzers . | . . . . . . . Garrison Access . | . . . . . . . Total Hacks 34 | . 8 . . 2 24 . Successful 29 | . 4 . . 1 24 . Failed 5 | . 4 . . 1 . . Catastrophic 1 | . 1 . . . . . Database Lockouts . | . . . . . . . Manual 9 | . 8 . . . 1 . Terminals 10 | . 8 . . 2 . . Fabricators . | . . . . . . . Repair Stations . | . . . . . . . Recycling Units . | . . . . . . . Scanalyzers . | . . . . . . . Garrison Access . | . . . . . . . Terminal Hacks 29 | . 4 . . 1 24 . Record 23 | . . . . . 23 . Prototype ID Bank 3 | . 3 . . . . . Branch Access Points 1 | . 1 . . . . . Zone Layout 1 | . . . . 1 . . Derelict Proto ID Bank 1 | . . . . . 1 . Fabricator Hacks . | . . . . . . . Repair Station Hacks . | . . . . . . . Recycling Unit Hacks . | . . . . . . . Scanalyzer . | . . . . . . . Garrison Access Hacks . | . . . . . . . Unauthorized Hacks . | . . . . . . . Terminals . | . . . . . . . Fabricators . | . . . . . . . Repair Stations . | . . . . . . . Recycling Units . | . . . . . . . Scanalyzers . | . . . . . . . Garrison Access . | . . . . . . . Data Cores Recovered . | . . . . . . . Used . | . . . . . . . Hacking Detections 3 | . 2 . . 1 . . Full Trace Events 1 | . 1 . . . . . Feedback Events . | . . . . . . . Feedback Blocked . | . . . . . . . Robot Schematics Acquired . | . . . . . . . Robots Built . | . . . . . . . Authchips . | . . . . . . . Time . | . . . . . . . Total Robot Build Rating . | . . . . . . . Part Schematics Acquired . | . . . . . . . Parts Built . | . . . . . . . Authchips . | . . . . . . . Time . | . . . . . . . Total Part Build Rating . | . . . . . . . Parts Repaired . | . . . . . . . Time . | . . . . . . . Parts Recycled . | . . . . . . . Recycled Matter . | . . . . . . . Retrieved Matter . | . . . . . . . Retrieved Components . | . . . . . . . Parts Scanalyzed . | . . . . . . . Part Schematics Acquired . | . . . . . . . Parts Damaged . | . . . . . . . Bothacking | -11 -10 -10 -9 -9 -9 -8 ------------ Run | Yrd Mat Min Mat Min Exi Min Used RIF Installer . | . . . . . . . Robots Hacked . | . . . . . . . Non-combat . | . . . . . . . Combat . | . . . . . . . Robot Hacks Applied . | . . . . . . . Relay Couplers Released . | . . . . . . . Fabnet Peak Effective % . | . . . . . . . Robots Rewired . | . . . . . . . Allies Hacked . | . . . . . . . Hacks Repelled . | . . . . . . . Allies | -11 -10 -10 -9 -9 -9 -8 -------- Run | Yrd Mat Min Mat Min Exi Min Total Allies . | . . . . . . . Largest Group . | . . . . . . . Highest-Rated Group . | . . . . . . . Highest-Rated Ally . | . . . . . . . Total Orders . | . . . . . . . Ally Attacks . | . . . . . . . Total Damage . | . . . . . . . Kills . | . . . . . . . Allies Corrupted . | . . . . . . . Allies Melted . | . . . . . . . Intel | -11 -10 -10 -9 -9 -9 -8 ------- Run | Yrd Mat Min Mat Min Exi Min Robot Analysis Total . | . . . . . . . Derelict Logs Recovered 2 | . . 1 . 1 . . Drone Launches . | . . . . . . . Drone Recoveries . | . . . . . . . Exploration | -11 -10 -10 -9 -9 -9 -8 ------------- Run | Yrd Mat Min Mat Min Exi Min Turns Passed 2017 | 52 202 300 382 409 370 302 Spaces Moved 999 | 40 93 184 161 224 214 83 Core 112 | 21 . . 8 . . 83 Treads 887 | 19 93 184 153 224 214 . Legs . | . . . . . . . Wheels . | . . . . . . . Hover . | . . . . . . . Flight . | . . . . . . . Fastest Speed 50 | 50 160 160 150 160 160 200 Average Speed 170 | 102 160 160 169 160 160 295 Slowest Speed 450 | 160 160 160 450 160 160 300 Overloaded Moves . | . . . . . . . Propulsion Burnouts . | . . . . . . . Robots Hopped . | . . . . . . . Cave-ins Triggered . | . . . . . . . Exploration Rate (%) 30 | 4 19 36 24 43 60 30 Regions Visited 6 Branch Regions 4 Pre-discovered Areas 2 | . . . . 1 1 . Known Exits Taken 1 | . 1 . . . . . Unknown Exits Taken 5 | 1 . 1 1 1 1 . Scrap Searched 1 | . . . . 1 . . Spaces Dug . | . . . . . . . Terrain Destroyed 150 | . . . 27 62 . 61 Melee . | . . . . . . . Projectile . | . . . . . . . AOE 150 | . . . 27 62 . 61 Terrain Rammed . | . . . . . . . Walls Destroyed . | . . . . . . . Machines Disabled . | . . . . . . . Actions | -11 -10 -10 -9 -9 -9 -8 --------- Run | Yrd Mat Min Mat Min Exi Min Total 1178 | 50 117 189 215 252 242 113 Wait 32 | . 1 . . 3 28 . Move 993 | 39 92 183 160 223 213 83 Hop . | . . . . . . . Pick Up 28 | 5 4 2 10 4 1 2 Fast Attach 3 | 2 . . 1 . . . Attach 22 | 4 1 . 9 3 . 5 Detach . | . . . . . . . Swap 8 | . . 3 5 . . . Drop 3 | . . 1 2 . . . Fire 84 | . 15 . 28 18 . 23 Melee . | . . . . . . . Ram . | . . . . . . . Kick . | . . . . . . . Crush 5 | . 4 . . 1 . . Escape Stasis . | . . . . . . . Rewire . | . . . . . . . Trap . | . . . . . . . Miscellaneous . | . . . . . . . Route ------- -11/Scrapyard -10/Materials (discovered 2 exits: *Min x2) -10/Mines -9/Materials -9/Mines -9/Exiles -8/Mines History --------- Turn | Location | Event 5 | -11/Scrapyard | Discovered new exit (range 15) 53 | -11/Scrapyard | Entered Materials 68 | -10/Materials | Identified exit to Mines 255 | -10/Materials | Entered Mines 286 | -10/Mines | Received a Rocket Launcher from a helpful Derelict 306 | -10/Mines | Build established: Mutant 384 | -10/Mines | Assembled infested the area 535 | -10/Mines | Discovered new exit (range 13) 546 | -10/Mines | Learned Materials trap positions 555 | -10/Mines | Entered Materials 555 | -9/Materials | Evolved 2 slots: Utility x2 556 | -9/Materials | Loaded intel: 17 trap records 805 | -9/Materials | Discovered new exit (range 16) 890 | -9/Materials | Core integrity fell below 50% 915 | -9/Materials | Lost 4 parts (1u3w) 937 | -9/Materials | Entered Mines 938 | -9/Mines | Learned location of Storage (-9) 976 | -9/Mines | Found a damaged Exp. Sensor Array with a note attached 979 | -9/Mines | Found Prototype Device 982 | -9/Mines | Met a Derelict bent on vengeance 1073 | -9/Mines | Identified Exp. Sensor Array 1135 | -9/Mines | Learned location of 1 exit from Lower Caves 1290 | -9/Mines | Discovered new exit (range 9) 1340 | -9/Mines | Deemed a non-threat by the Exiles lab entrance 1346 | -9/Mines | Entered Exiles 1385 | -9/Exiles | Met 8R-AWN 1414 | -9/Exiles | Met EX-HEX 1455 | -9/Exiles | Met EX-BIN 1474 | -9/Exiles | Aligned with FarCom system 1476 | -9/Exiles | Given EX-Vault access code 1513 | -9/Exiles | Opened EX-Vault 1527 | -9/Exiles | Found Firepult 1562 | -9/Exiles | Warned to stay clear of 0b10 Research branches 1579 | -9/Exiles | Exiles lab attacked by MAIN.C 1619 | -9/Exiles | Learned location of Zion (-6) 1675 | -9/Exiles | Discovered new exit (range 10) 1716 | -9/Exiles | Left Exiles lab with Firepult 1716 | -9/Exiles | Entered Mines 1733 | -8/Mines | Core integrity fell below 20% 1765 | -8/Mines | Lost 6 parts (1p1n1u3w) 2018 | -8/Mines | Destroyed by H-55 Commando with Gauss Rifle Last Messages --------------- 01741_ Acquired Lgt. Nuclear Core. 01741_ R-06 Scavenger collects Particle Gun. 01742_ Acquired 6 matter. 01743_ K-01 Serf collects debris. 01744_ The unstable cave ceiling collapses. 01748_ K-01 Serf collects debris. 01795_ T-07 Excavator is excavating. 01881_ U-05 Engineer destroyed. 01902_ Acquired 16 matter. 01908_ Acquired Structural Scanner. 01930_ T-07 Excavator is excavating. 01998_ Destroyed Com. Wheel. 01998_ R-06 Scavenger destroyed. 02002_ Slug penetrates Wall. 02008_ Penetrated by Slug. 02008_ Core Shielding destroyed. 02011_ Penetrated by Slug. 02011_ Lgt. Nuclear Core destroyed. 02014_ The unstable cave ceiling collapses. 02018_ Penetrated by Slug. Map ----- +----------------------------------------------------+ | | | | | | | | | | | | | | | | | | | | | | | | | | | | | | | ????????????????????????????????????? | | ????????????????????????????????????? | | ?????????????????????####???????????? | | ?????????????????##### ##??????????? | | ????????????????## #??????????? | | ??????????????### #??????????? | | ??????????##### #??????????? | | ??????????# ##??????????? | | ???##### #######????? | | #??# #????? | | ##?# h % * @ #????? | | #?# #### ### #????? | | ### #???# #?# #????? | | #???# #?# #????? | | ####???### # ##?# #????? | | #????????#???## #??# #????? | | ????????????## #??# #????? | | ????????????# """ #?# #????? | | ######???????????# """ ## #????? | | ????????????????# """ ## #????? | | ???????????????? ### #????? | | ??????????????? ##?# #????? | | ?????????????? ##??# #????? | | ?????????????# ####??? #????? | | ??????????????? ##?????? #????? | | ???????????????? #???????####????? | | ????????????????? ????????????????? | | ??????????????????? ????????????????? | | ????????????????????????????????????? | | ????????????????????????????????????? | | ????????????????????????????????????? | | ????????????????????????????????????? | | ????????????????????????????????????? | | ????????????????????????????????????? | | ????????????????????????????????????? | +----------------------------------------------------+ Best States ------------- Heat Dissipation 38 Energy Generation 14 Energy Capacity 280 Matter Stores 300 Matter Capacity 300 Sight Range 18 Robot Scan Range 20 Terrain Scan Density 10 Armor Coverage 225 Core Shielding 20 Evasion (%) 50 Targeting Accuracy 6 Recoil Reduction 2 Item Schematics ----------------- None Robot Schematics ------------------ None Fabricated ------------ Nothing Alien Tech Used ----------------- None Achievements -------------- None Challenges ------------ None Game ------ Seed DerelictNuclearRigger Manual? 0 Play Time 00:12:38 Cumulative 26.2 hours Start 2024.05.08 @ 03:28:33 End 2024.05.08 @ 19:57:46 Sessions 3 Manual Loads 0 Difficulty Rogue Special Mode None Game No. 45 Rogue 45 Adventurer 0 Explorer 0 Win Type - Total 0 Types 0/0/0/0/0/0/0/0/0 Lore% 22 Gallery% 34 Achievement% 25 Wizard Run 0 Options --------- Layout 1 ASCII 0 Keyboard 0 Movement Mouse Keybinds 0 Fullscreen 1 Font 24/Smallcaps Map View 50x40 Zoom Use 0% Tactical HUD 1 Map Filters NONE Filters NONE Steam 1 RUN: fa660ac5-8753-4113-a50f-15ac944f0756